[Event "Titled Tuesday Blitz April 11 Early 2023"]
[White "Qashashvili, Alexandre"]
[Black "Sreyas Payyappat"]
[WhiteFideId "13600842"]
[BlackFideId "46674969"]
[WhiteElo "2405"]
[BlackElo "2083"]
[Result "1-0"]
[Round "03"]
[TimeControl "180+2"]
[Date "2023.04.11"]
[WhiteClock "0:00:17"]
[BlackClock "0:01:11"]

1. e4 {[%clk 0:03:00]}  c6 {[%clk 0:02:58]} 2. d4 {[%clk 0:02:55]}  d5 {[%clk 0:02:59]} 3. exd5 {[%clk 0:02:41]}  cxd5 {[%clk 0:03:00]} 4. c3 {[%clk 0:02:38]}  Nc6 {[%clk 0:03:01]} 5. Nf3 {[%clk 0:02:38]}  Bg4 {[%clk 0:03:00]} 6. Be2 {[%clk 0:02:26]}  Qc7 {[%clk 0:02:56]} 7. h3 {[%clk 0:02:22]}  Bxf3 {[%clk 0:02:55]} 8. Bxf3 {[%clk 0:02:22]}  Nf6 {[%clk 0:02:56]} 9. O-O {[%clk 0:02:22]}  e6 {[%clk 0:02:55]} 10. Re1 {[%clk 0:02:22]}  Bd6 {[%clk 0:02:54]} 11. Bg5 {[%clk 0:02:21]}  O-O-O {[%clk 0:02:52]} 12. Nd2 {[%clk 0:02:19]}  h6 {[%clk 0:02:50]} 13. Be3 {[%clk 0:02:16]}  e5 {[%clk 0:02:44]} 14. dxe5 {[%clk 0:02:15]}  Bxe5 {[%clk 0:02:34]} 15. Nb3 {[%clk 0:02:11]}  g5 {[%clk 0:02:29]} 16. Nd4 {[%clk 0:01:58]}  Nxd4 {[%clk 0:02:23]} 17. Bxd4 {[%clk 0:01:58]}  Bxd4 {[%clk 0:02:21]} 18. Qxd4 {[%clk 0:01:58]}  Qb6 {[%clk 0:02:11]} 19. Qxb6 {[%clk 0:01:54]}  axb6 {[%clk 0:02:12]} 20. Rad1 {[%clk 0:01:51]}  Rd7 {[%clk 0:02:05]} 21. Re5 {[%clk 0:01:48]}  Rhd8 {[%clk 0:02:04]} 22. Rf5 {[%clk 0:01:47]}  Rd6 {[%clk 0:02:03]} 23. Rd4 {[%clk 0:01:33]}  R8d7 {[%clk 0:01:59]} 24. Rxf6 {[%clk 0:01:21]}  Rxf6 {[%clk 0:01:56]} 25. Bg4 {[%clk 0:01:22]}  Rd6 {[%clk 0:01:54]} 26. Kf1 {[%clk 0:01:19]}  Re6 {[%clk 0:01:40]} 27. Bxe6 {[%clk 0:01:16]}  fxe6 {[%clk 0:01:41]} 28. h4 {[%clk 0:01:05]}  e5 {[%clk 0:01:36]} 29. Rb4 {[%clk 0:01:05]}  Kc7 {[%clk 0:01:34]} 30. hxg5 {[%clk 0:01:03]}  hxg5 {[%clk 0:01:33]} 31. Ke2 {[%clk 0:01:03]}  Kc6 {[%clk 0:01:33]} 32. a3 {[%clk 0:00:56]}  b5 {[%clk 0:01:31]} 33. Rg4 {[%clk 0:00:51]}  Rg7 {[%clk 0:01:30]} 34. Rg3 {[%clk 0:00:51]}  Kd6 {[%clk 0:01:27]} 35. Rh3 {[%clk 0:00:50]}  g4 {[%clk 0:01:23]} 36. Rh6+ {[%clk 0:00:48]}  Kc5 {[%clk 0:01:22]} 37. Kd3 {[%clk 0:00:45]}  e4+ {[%clk 0:01:18]} 38. Kc2 {[%clk 0:00:32]}  Rf7 {[%clk 0:01:16]} 39. f3 {[%clk 0:00:18]}  gxf3 {[%clk 0:01:15]} 40. gxf3 {[%clk 0:00:19]}  exf3 {[%clk 0:01:14]} 41. b4+ {[%clk 0:00:16]}  Kc4 {[%clk 0:01:11]} 42. Rh4+ {[%clk 0:00:17]}  d4 {[%clk 0:01:11]} 43. Rxd4# {[%clk 0:00:17]} 1-0


[Site "https://www.chess.com"]

[Event "Titled Tuesday Blitz April 11 Early 2023"]
[White "sebastianmarinp"]
[Black "Rodchenkov, Sergey D."]
[BlackFideId "4168712"]
[WhiteElo "2280"]
[BlackElo "2277"]
[Result "1-0"]
[Round "03"]
[TimeControl "180+2"]
[Date "2023.04.11"]
[WhiteClock "0:00:08"]
[BlackClock "0:00:08"]

1. e4 {[%clk 0:03:00]}  c5 {[%clk 0:03:00]} 2. Nf3 {[%clk 0:03:00]}  d6 {[%clk 0:03:00]} 3. d4 {[%clk 0:03:00]}  cxd4 {[%clk 0:03:00]} 4. Nxd4 {[%clk 0:03:01]}  Nf6 {[%clk 0:03:01]} 5. Nc3 {[%clk 0:03:01]}  a6 {[%clk 0:03:02]} 6. h3 {[%clk 0:03:00]}  e5 {[%clk 0:03:01]} 7. Nde2 {[%clk 0:03:00]}  h5 {[%clk 0:03:01]} 8. Bg5 {[%clk 0:03:00]}  Be6 {[%clk 0:03:01]} 9. Qd3 {[%clk 0:02:59]}  Nbd7 {[%clk 0:02:57]} 10. O-O-O {[%clk 0:02:58]}  Be7 {[%clk 0:02:57]} 11. Kb1 {[%clk 0:02:53]}  b5 {[%clk 0:02:56]} 12. Ng3 {[%clk 0:02:46]}  Nc5 {[%clk 0:02:42]} 13. Qf3 {[%clk 0:02:45]}  b4 {[%clk 0:02:39]} 14. Bxf6 {[%clk 0:02:30]}  Bxf6 {[%clk 0:02:33]} 15. Nd5 {[%clk 0:02:29]}  Bxd5 {[%clk 0:02:31]} 16. Rxd5 {[%clk 0:02:30]}  g6 {[%clk 0:02:26]} 17. Bc4 {[%clk 0:02:29]}  O-O {[%clk 0:02:24]} 18. Rhd1 {[%clk 0:02:29]}  Nb7 {[%clk 0:02:21]} 19. b3 {[%clk 0:02:08]}  Bg7 {[%clk 0:02:18]} 20. Nf1 {[%clk 0:02:02]}  a5 {[%clk 0:02:13]} 21. Rb5 {[%clk 0:01:50]}  Qc7 {[%clk 0:02:07]} 22. Ne3 {[%clk 0:01:30]}  Nc5 {[%clk 0:01:49]} 23. Nd5 {[%clk 0:01:29]}  Qd8 {[%clk 0:01:46]} 24. g4 {[%clk 0:01:11]}  h4 {[%clk 0:01:40]} 25. Ne3 {[%clk 0:01:05]}  Qe7 {[%clk 0:01:27]} 26. Rb6 {[%clk 0:01:03]}  Rfd8 {[%clk 0:01:20]} 27. Nd5 {[%clk 0:01:02]}  Qa7 {[%clk 0:01:17]} 28. Rc6 {[%clk 0:00:57]}  a4 {[%clk 0:01:13]} 29. Nf6+ {[%clk 0:00:51]}  Kh8 {[%clk 0:01:07]} 30. Rcxd6 {[%clk 0:00:42]}  Rxd6 {[%clk 0:01:04]} 31. Rxd6 {[%clk 0:00:43]}  axb3 {[%clk 0:01:04]} 32. Bxb3 {[%clk 0:00:42]}  Nxb3 {[%clk 0:01:01]} 33. Qxb3 {[%clk 0:00:43]}  Qxf2 {[%clk 0:00:58]} 34. Qxf7 {[%clk 0:00:38]}  Qe1+ {[%clk 0:00:57]} 35. Kb2 {[%clk 0:00:37]}  Qc3+ {[%clk 0:00:58]} 36. Kb1 {[%clk 0:00:35]}  Qe1+ {[%clk 0:00:57]} 37. Kb2 {[%clk 0:00:35]}  Rc8 {[%clk 0:00:39]} 38. Qb3 {[%clk 0:00:20]}  Qf1 {[%clk 0:00:12]} 39. g5 {[%clk 0:00:20]}  Qe1 {[%clk 0:00:12]} 40. Qd3 {[%clk 0:00:18]}  Qc3+ {[%clk 0:00:10]} 41. Qxc3 {[%clk 0:00:17]}  bxc3+ {[%clk 0:00:11]} 42. Kb3 {[%clk 0:00:17]}  Bf8 {[%clk 0:00:11]} 43. Re6 {[%clk 0:00:16]}  Kg7 {[%clk 0:00:09]} 44. Re8 {[%clk 0:00:13]}  Rc6 {[%clk 0:00:05]} 45. Rxe5 {[%clk 0:00:09]}  Rb6+ {[%clk 0:00:05]} 46. Kxc3 {[%clk 0:00:09]}  Rc6+ {[%clk 0:00:04]} 47. Kb3 {[%clk 0:00:09]}  Bd6 {[%clk 0:00:05]} 48. Rd5 {[%clk 0:00:09]}  Rb6+ {[%clk 0:00:05]} 49. Kc4 {[%clk 0:00:08]}  Ra6 {[%clk 0:00:03]} 50. e5 {[%clk 0:00:08]}  Be7 {[%clk 0:00:02]} 51. Rd7 {[%clk 0:00:08]}  Kf8 {[%clk 0:00:02]} 52. Kd5 {[%clk 0:00:08]}  Rxa2 {[%clk 0:00:02]} 53. Ke6 {[%clk 0:00:05]}  Ra6+ {[%clk 0:00:02]} 54. Rd6 {[%clk 0:00:03]}  Bxd6 {[%clk 0:00:02]} 55. exd6 {[%clk 0:00:04]}  Rc6 {[%clk 0:00:02]} 56. c4 {[%clk 0:00:03]}  Rxc4 {[%clk 0:00:02]} 57. d7 {[%clk 0:00:03]}  Rd4 {[%clk 0:00:02]} 58. Nd5 {[%clk 0:00:03]}  Rxd5 {[%clk 0:00:02]} 59. Kxd5 {[%clk 0:00:03]}  Ke7 {[%clk 0:00:03]} 60. Ke5 {[%clk 0:00:04]}  Kd8 {[%clk 0:00:04]} 61. Kf6 {[%clk 0:00:05]}  Kxd7 {[%clk 0:00:04]} 62. Kxg6 {[%clk 0:00:06]}  Ke6 {[%clk 0:00:05]} 63. Kh5 {[%clk 0:00:06]}  Ke5 {[%clk 0:00:06]} 64. Kxh4 {[%clk 0:00:07]}  Kf5 {[%clk 0:00:07]} 65. Kh5 {[%clk 0:00:07]}  Kf4 {[%clk 0:00:08]} 66. g6 {[%clk 0:00:08]} 1-0


[Site "https://www.chess.com"]

[Event "Titled Tuesday Blitz April 11 Early 2023"]
[White "Lopez, Henry"]
[Black "lluiss"]
[WhiteFideId "5203830"]
[WhiteElo "2177"]
[BlackElo "2262"]
[Result "1-0"]
[Round "03"]
[TimeControl "180+2"]
[Date "2023.04.11"]
[WhiteClock "0:02:25"]
[BlackClock "0:01:02"]

1. d4 {[%clk 0:03:00]}  Nf6 {[%clk 0:02:59]} 2. Nf3 {[%clk 0:03:00]}  g6 {[%clk 0:02:59]} 3. c4 {[%clk 0:03:00]}  Bg7 {[%clk 0:02:58]} 4. Nc3 {[%clk 0:03:01]}  d5 {[%clk 0:02:59]} 5. h4 {[%clk 0:03:00]}  dxc4 {[%clk 0:02:52]} 6. e4 {[%clk 0:02:59]}  c5 {[%clk 0:02:51]} 7. d5 {[%clk 0:02:59]}  e6 {[%clk 0:02:49]} 8. Bxc4 {[%clk 0:02:49]}  exd5 {[%clk 0:02:48]} 9. Nxd5 {[%clk 0:02:47]}  Nxd5 {[%clk 0:02:32]} 10. Bxd5 {[%clk 0:02:46]}  O-O {[%clk 0:02:26]} 11. h5 {[%clk 0:02:46]}  Bg4 {[%clk 0:02:24]} 12. hxg6 {[%clk 0:02:44]}  hxg6 {[%clk 0:02:24]} 13. Qb3 {[%clk 0:02:41]}  Bxf3 {[%clk 0:02:11]} 14. Qxf3 {[%clk 0:02:38]}  Nc6 {[%clk 0:02:11]} 15. Qh3 {[%clk 0:02:31]}  Re8 {[%clk 0:01:50]} 16. Qh7+ {[%clk 0:02:30]}  Kf8 {[%clk 0:01:50]} 17. Bh6 {[%clk 0:02:27]}  Qxd5 {[%clk 0:01:03]} 18. Qxg7+ {[%clk 0:02:26]}  Ke7 {[%clk 0:01:02]} 19. exd5 {[%clk 0:02:25]} 1-0


[Site "https://www.chess.com"]

[Event "Titled Tuesday Blitz April 11 Early 2023"]
[White "Palacio,Igor Da Paz"]
[Black "Shubenkova, Veronika"]
[WhiteFideId "2121140"]
[BlackFideId "44124040"]
[WhiteElo "2126"]
[BlackElo "2027"]
[Result "0-1"]
[Round "03"]
[TimeControl "180+2"]
[Date "2023.04.11"]
[WhiteClock "0:00:02"]
[BlackClock "0:00:11"]

1. e4 {[%clk 0:03:00]}  e6 {[%clk 0:03:00]} 2. d4 {[%clk 0:03:00]}  d5 {[%clk 0:03:00]} 3. Nd2 {[%clk 0:03:00]}  Nf6 {[%clk 0:03:00]} 4. Bd3 {[%clk 0:02:58]}  c5 {[%clk 0:03:00]} 5. c3 {[%clk 0:02:58]}  Nc6 {[%clk 0:03:00]} 6. Ngf3 {[%clk 0:02:58]}  a6 {[%clk 0:03:00]} 7. O-O {[%clk 0:02:57]}  Be7 {[%clk 0:03:00]} 8. Re1 {[%clk 0:02:56]}  b5 {[%clk 0:02:57]} 9. exd5 {[%clk 0:02:16]}  exd5 {[%clk 0:02:54]} 10. h3 {[%clk 0:02:13]}  O-O {[%clk 0:02:54]} 11. Nf1 {[%clk 0:02:11]}  cxd4 {[%clk 0:02:47]} 12. Nxd4 {[%clk 0:02:05]}  Nxd4 {[%clk 0:02:46]} 13. cxd4 {[%clk 0:02:05]}  Bb7 {[%clk 0:02:46]} 14. Bf4 {[%clk 0:02:00]}  Ne4 {[%clk 0:02:45]} 15. f3 {[%clk 0:01:53]}  Nf6 {[%clk 0:02:39]} 16. a3 {[%clk 0:01:48]}  Re8 {[%clk 0:02:38]} 17. Rc1 {[%clk 0:01:46]}  Qb6 {[%clk 0:02:31]} 18. Bb1 {[%clk 0:01:34]}  Bd6 {[%clk 0:02:25]} 19. Rxe8+ {[%clk 0:01:27]}  Rxe8 {[%clk 0:02:24]} 20. Bg5 {[%clk 0:01:27]}  Nh5 {[%clk 0:02:17]} 21. Qd3 {[%clk 0:01:22]}  g6 {[%clk 0:02:16]} 22. Qd2 {[%clk 0:00:47]}  Bb8 {[%clk 0:02:01]} 23. b4 {[%clk 0:00:39]}  Qd6 {[%clk 0:01:58]} 24. Re1 {[%clk 0:00:26]}  Bc6 {[%clk 0:01:44]} 25. Rxe8+ {[%clk 0:00:23]}  Bxe8 {[%clk 0:01:43]} 26. Qe3 {[%clk 0:00:20]}  Bd7 {[%clk 0:01:37]} 27. Kf2 {[%clk 0:00:20]}  Be6 {[%clk 0:01:22]} 28. Bd3 {[%clk 0:00:16]}  Ng3 {[%clk 0:01:19]} 29. Nxg3 {[%clk 0:00:04]}  Qxg3+ {[%clk 0:01:18]} 30. Kf1 {[%clk 0:00:05]}  Qh2 {[%clk 0:01:08]} 31. Bf6 {[%clk 0:00:05]}  Bg3 {[%clk 0:00:51]} 32. Qg1 {[%clk 0:00:04]}  Qxg1+ {[%clk 0:00:41]} 33. Kxg1 {[%clk 0:00:05]}  Bf4 {[%clk 0:00:41]} 34. Kf2 {[%clk 0:00:02]}  Bc1 {[%clk 0:00:41]} 35. a4 {[%clk 0:00:01]}  Bd7 {[%clk 0:00:41]} 36. axb5 {[%clk 0:00:01]}  axb5 {[%clk 0:00:41]} 37. Be7 {[%clk 0:00:01]}  Bb2 {[%clk 0:00:41]} 38. Bc5 {[%clk 0:00:02]}  Bc1 {[%clk 0:00:40]} 39. Ke2 {[%clk 0:00:03]}  Kg7 {[%clk 0:00:39]} 40. Bc2 {[%clk 0:00:03]}  f5 {[%clk 0:00:39]} 41. Bb3 {[%clk 0:00:03]}  Be6 {[%clk 0:00:35]} 42. Kd1 {[%clk 0:00:03]}  Bf4 {[%clk 0:00:35]} 43. Ke2 {[%clk 0:00:04]}  g5 {[%clk 0:00:35]} 44. Kf2 {[%clk 0:00:04]}  Kf6 {[%clk 0:00:35]} 45. g3 {[%clk 0:00:04]}  Bc1 {[%clk 0:00:32]} 46. g4 {[%clk 0:00:04]}  Bf4 {[%clk 0:00:28]} 47. Bc2 {[%clk 0:00:04]}  fxg4 {[%clk 0:00:14]} 48. hxg4 {[%clk 0:00:05]}  h6 {[%clk 0:00:14]} 49. Bd3 {[%clk 0:00:05]}  Bd7 {[%clk 0:00:12]} 50. Ke2 {[%clk 0:00:05]}  Kg7 {[%clk 0:00:12]} 51. Kf2 {[%clk 0:00:05]}  Be8 {[%clk 0:00:12]} 52. Bf1 {[%clk 0:00:05]}  h5 {[%clk 0:00:11]} 53. gxh5 {[%clk 0:00:04]}  Kh6 {[%clk 0:00:11]} 54. Bh3 {[%clk 0:00:03]}  Kxh5 {[%clk 0:00:11]} 55. Be6 {[%clk 0:00:03]}  Bc6 {[%clk 0:00:11]} 56. Kg2 {[%clk 0:00:03]}  Bd2 {[%clk 0:00:10]} 57. Kh3 {[%clk 0:00:02]}  Kg6 {[%clk 0:00:10]} 58. Kg4 {[%clk 0:00:02]}  Kf6 {[%clk 0:00:11]} 59. Bf5 {[%clk 0:00:02]}  Be8 {[%clk 0:00:09]} 60. Bc8 {[%clk 0:00:03]}  Bc1 {[%clk 0:00:08]} 61. Bf5 {[%clk 0:00:03]}  Bd2 {[%clk 0:00:07]} 62. Bc8 {[%clk 0:00:03]}  Be3 {[%clk 0:00:07]} 63. Bf5 {[%clk 0:00:02]}  Bh5+ {[%clk 0:00:07]} 64. Kxh5 {[%clk 0:00:02]}  Kxf5 {[%clk 0:00:08]} 65. Bb6 {[%clk 0:00:02]}  Kf4 {[%clk 0:00:07]} 66. Kg6 {[%clk 0:00:01]}  Kxf3 {[%clk 0:00:08]} 67. Kf6 {[%clk 0:00:02]}  g4 {[%clk 0:00:08]} 68. Ke5 {[%clk 0:00:01]}  g3 {[%clk 0:00:08]} 69. Kxd5 {[%clk 0:00:02]}  g2 {[%clk 0:00:09]} 70. Kc6 {[%clk 0:00:02]}  g1=Q {[%clk 0:00:09]} 71. Kxb5 {[%clk 0:00:03]}  Qf1+ {[%clk 0:00:09]} 72. Ka5 {[%clk 0:00:02]}  Qc4 {[%clk 0:00:09]} 73. d5 {[%clk 0:00:01]}  Bxb6+ {[%clk 0:00:09]} 74. Kxb6 {[%clk 0:00:01]}  Qxb4+ {[%clk 0:00:09]} 75. Kc6 {[%clk 0:00:02]}  Ke4 {[%clk 0:00:10]} 76. d6 {[%clk 0:00:02]}  Qc4+ {[%clk 0:00:10]} 77. Kd7 {[%clk 0:00:02]}  Ke5 {[%clk 0:00:11]} 0-1


[Site "https://www.chess.com"]

[Event "Titled Tuesday Blitz April 11 Early 2023"]
[White "Albuquerque Junior,Wellington S."]
[Black "Santos Flores, Alberto"]
[WhiteFideId "2151480"]
[BlackFideId "3601234"]
[WhiteElo "2109"]
[BlackElo "2235"]
[Result "0-1"]
[Round "03"]
[TimeControl "180+2"]
[Date "2023.04.11"]
[WhiteClock "0:00:17"]
[BlackClock "0:00:42"]

1. c4 {[%clk 0:03:00]}  c6 {[%clk 0:02:59]} 2. Nf3 {[%clk 0:03:00]}  d5 {[%clk 0:03:00]} 3. g3 {[%clk 0:03:00]}  Nf6 {[%clk 0:02:58]} 4. Bg2 {[%clk 0:03:00]}  Bg4 {[%clk 0:02:59]} 5. Ne5 {[%clk 0:03:00]}  Be6 {[%clk 0:02:59]} 6. d4 {[%clk 0:02:57]}  dxc4 {[%clk 0:02:58]} 7. e4 {[%clk 0:02:57]}  Nbd7 {[%clk 0:02:56]} 8. Nxd7 {[%clk 0:02:41]}  Qxd7 {[%clk 0:02:56]} 9. Be3 {[%clk 0:02:38]}  g6 {[%clk 0:02:55]} 10. Nc3 {[%clk 0:02:37]}  Bg7 {[%clk 0:02:55]} 11. d5 {[%clk 0:02:35]}  cxd5 {[%clk 0:02:55]} 12. exd5 {[%clk 0:02:35]}  Bf5 {[%clk 0:02:54]} 13. O-O {[%clk 0:02:32]}  O-O {[%clk 0:02:53]} 14. Re1 {[%clk 0:02:21]}  Rad8 {[%clk 0:02:51]} 15. Bxa7 {[%clk 0:02:18]}  b5 {[%clk 0:02:49]} 16. Bc5 {[%clk 0:02:16]}  Rfe8 {[%clk 0:02:44]} 17. a4 {[%clk 0:02:10]}  bxa4 {[%clk 0:02:40]} 18. Rxa4 {[%clk 0:02:11]}  e6 {[%clk 0:02:37]} 19. dxe6 {[%clk 0:01:45]}  Bxe6 {[%clk 0:02:36]} 20. Qxd7 {[%clk 0:01:44]}  Nxd7 {[%clk 0:02:37]} 21. Ba3 {[%clk 0:01:32]}  Rc8 {[%clk 0:02:30]} 22. h4 {[%clk 0:00:51]}  Nc5 {[%clk 0:02:26]} 23. Bxc5 {[%clk 0:00:47]}  Rxc5 {[%clk 0:02:27]} 24. Re2 {[%clk 0:00:37]}  Rb8 {[%clk 0:02:25]} 25. Ra8 {[%clk 0:00:29]}  Rxa8 {[%clk 0:02:11]} 26. Bxa8 {[%clk 0:00:30]}  Kf8 {[%clk 0:02:04]} 27. Bf3 {[%clk 0:00:20]}  Bf5 {[%clk 0:01:23]} 28. Rd2 {[%clk 0:00:18]}  Rc8 {[%clk 0:01:20]} 29. Bd5 {[%clk 0:00:17]}  Bd3 {[%clk 0:01:18]} 30. Kg2 {[%clk 0:00:14]}  Bh6 {[%clk 0:01:14]} 31. Rd1 {[%clk 0:00:14]}  Rb8 {[%clk 0:01:14]} 32. Be4 {[%clk 0:00:13]}  Bxe4+ {[%clk 0:01:11]} 33. Nxe4 {[%clk 0:00:14]}  Rxb2 {[%clk 0:01:10]} 34. Rd8+ {[%clk 0:00:14]}  Ke7 {[%clk 0:01:10]} 35. Rc8 {[%clk 0:00:15]}  Rc2 {[%clk 0:01:08]} 36. Rc7+ {[%clk 0:00:16]}  Ke6 {[%clk 0:00:53]} 37. Ng5+ {[%clk 0:00:15]}  Bxg5 {[%clk 0:00:51]} 38. hxg5 {[%clk 0:00:16]}  c3 {[%clk 0:00:50]} 39. Kf3 {[%clk 0:00:17]}  Rc1 {[%clk 0:00:50]} 40. Kg4 {[%clk 0:00:15]}  c2 {[%clk 0:00:47]} 41. f4 {[%clk 0:00:15]}  Kd6 {[%clk 0:00:47]} 42. Rc8 {[%clk 0:00:15]}  Kd5 {[%clk 0:00:47]} 43. Rc7 {[%clk 0:00:15]}  Kd4 {[%clk 0:00:47]} 44. Rd7+ {[%clk 0:00:15]}  Ke3 {[%clk 0:00:47]} 45. Re7+ {[%clk 0:00:15]}  Kf2 {[%clk 0:00:46]} 46. Rc7 {[%clk 0:00:16]}  Ke1 {[%clk 0:00:43]} 47. Re7+ {[%clk 0:00:16]}  Kd2 {[%clk 0:00:43]} 48. Rd7+ {[%clk 0:00:16]}  Ke3 {[%clk 0:00:43]} 49. Re7+ {[%clk 0:00:16]}  Kd4 {[%clk 0:00:44]} 50. Rd7+ {[%clk 0:00:16]}  Kc5 {[%clk 0:00:44]} 51. Rc7+ {[%clk 0:00:17]}  Kd6 {[%clk 0:00:44]} 52. Rc3 {[%clk 0:00:18]}  Ke6 {[%clk 0:00:44]} 53. Rc8 {[%clk 0:00:18]}  f5+ {[%clk 0:00:42]} 54. gxf6 {[%clk 0:00:18]}  Kxf6 {[%clk 0:00:42]} 55. Rc3 {[%clk 0:00:19]}  h5+ {[%clk 0:00:42]} 56. Kf3 {[%clk 0:00:17]}  Rf1+ {[%clk 0:00:42]} 0-1


[Site "https://www.chess.com"]

[Event "Titled Tuesday Blitz April 11 Early 2023"]
[White "Adithya A Chullikkad"]
[Black "Kukreja, Sankalp"]
[WhiteFideId "45078734"]
[BlackFideId "45027676"]
[WhiteElo "1984"]
[BlackElo "2126"]
[Result "1-0"]
[Round "03"]
[TimeControl "180+2"]
[Date "2023.04.11"]
[WhiteClock "0:00:54"]
[BlackClock "0:01:06"]

1. d4 {[%clk 0:03:00]}  d5 {[%clk 0:02:57]} 2. Nf3 {[%clk 0:03:00]}  Nf6 {[%clk 0:02:57]} 3. c4 {[%clk 0:02:59]}  c6 {[%clk 0:02:57]} 4. Nc3 {[%clk 0:02:53]}  dxc4 {[%clk 0:02:57]} 5. a4 {[%clk 0:02:48]}  e6 {[%clk 0:02:48]} 6. e4 {[%clk 0:02:36]}  c5 {[%clk 0:02:46]} 7. d5 {[%clk 0:02:29]}  exd5 {[%clk 0:02:45]} 8. exd5 {[%clk 0:02:25]}  Nbd7 {[%clk 0:02:28]} 9. Bxc4 {[%clk 0:02:07]}  Nb6 {[%clk 0:02:24]} 10. Bb5+ {[%clk 0:02:01]}  Bd7 {[%clk 0:02:21]} 11. Qe2+ {[%clk 0:01:49]}  Qe7 {[%clk 0:02:04]} 12. Bxd7+ {[%clk 0:01:39]}  Nfxd7 {[%clk 0:01:29]} 13. Be3 {[%clk 0:01:28]}  g6 {[%clk 0:01:13]} 14. d6 {[%clk 0:01:17]}  Qxd6 {[%clk 0:01:06]} 15. Bd4+ {[%clk 0:00:54]} 1-0


[Site "https://www.chess.com"]

[Event "Titled Tuesday Blitz April 11 Early 2023"]
[White "Bas Mas, Jose Joaquin"]
[Black "Sohier, Julien"]
[WhiteFideId "22219064"]
[BlackFideId "645346"]
[WhiteElo "2233"]
[BlackElo "2209"]
[Result "1/2-1/2"]
[Round "03"]
[TimeControl "180+2"]
[Date "2023.04.11"]
[WhiteClock "0:01:02"]
[BlackClock "0:00:27"]

1. e4 {[%clk 0:03:00]}  e5 {[%clk 0:02:57]} 2. Bc4 {[%clk 0:03:00]}  Nc6 {[%clk 0:02:55]} 3. Nc3 {[%clk 0:03:00]}  Nf6 {[%clk 0:02:55]} 4. d3 {[%clk 0:03:00]}  Bb4 {[%clk 0:02:54]} 5. Ne2 {[%clk 0:02:55]}  d5 {[%clk 0:02:54]} 6. exd5 {[%clk 0:02:55]}  Nxd5 {[%clk 0:02:54]} 7. O-O {[%clk 0:02:54]}  Nxc3 {[%clk 0:02:54]} 8. bxc3 {[%clk 0:02:52]}  Bd6 {[%clk 0:02:54]} 9. a4 {[%clk 0:02:49]}  O-O {[%clk 0:02:53]} 10. a5 {[%clk 0:02:50]}  a6 {[%clk 0:02:52]} 11. f4 {[%clk 0:02:47]}  exf4 {[%clk 0:02:52]} 12. Nxf4 {[%clk 0:02:41]}  Qh4 {[%clk 0:02:46]} 13. g3 {[%clk 0:02:34]}  Qg4 {[%clk 0:02:43]} 14. Qxg4 {[%clk 0:02:21]}  Bxg4 {[%clk 0:02:44]} 15. Kg2 {[%clk 0:02:20]}  Rae8 {[%clk 0:02:32]} 16. d4 {[%clk 0:02:20]}  g6 {[%clk 0:02:00]} 17. Nd5 {[%clk 0:01:57]}  Be2 {[%clk 0:01:46]} 18. Nf6+ {[%clk 0:01:57]}  Kh8 {[%clk 0:01:45]} 19. Nxe8 {[%clk 0:01:53]}  Bxf1+ {[%clk 0:01:45]} 20. Kxf1 {[%clk 0:01:46]}  Rxe8 {[%clk 0:01:45]} 21. Bg5 {[%clk 0:01:43]}  Kg7 {[%clk 0:01:41]} 22. Kg2 {[%clk 0:01:40]}  f6 {[%clk 0:01:40]} 23. Bd2 {[%clk 0:01:40]}  h5 {[%clk 0:01:37]} 24. h3 {[%clk 0:01:37]}  Re7 {[%clk 0:01:17]} 25. Kf2 {[%clk 0:01:27]}  Nd8 {[%clk 0:01:09]} 26. Rb1 {[%clk 0:01:23]}  g5 {[%clk 0:01:02]} 27. Bd5 {[%clk 0:01:22]}  c6 {[%clk 0:01:01]} 28. Bf3 {[%clk 0:01:22]}  Kg6 {[%clk 0:01:01]} 29. c4 {[%clk 0:01:21]}  Ne6 {[%clk 0:00:58]} 30. c3 {[%clk 0:01:20]}  Bc7 {[%clk 0:00:53]} 31. Ra1 {[%clk 0:01:15]}  Bd6 {[%clk 0:00:48]} 32. c5 {[%clk 0:01:15]}  Bc7 {[%clk 0:00:48]} 33. Be4+ {[%clk 0:01:09]}  f5 {[%clk 0:00:47]} 34. Bd3 {[%clk 0:01:10]}  Kf6 {[%clk 0:00:47]} 35. Kg2 {[%clk 0:01:09]}  f4 {[%clk 0:00:47]} 36. h4 {[%clk 0:01:08]}  gxh4 {[%clk 0:00:45]} 37. gxf4 {[%clk 0:01:05]}  Nxf4+ {[%clk 0:00:41]} 38. Bxf4 {[%clk 0:01:05]}  Bxf4 {[%clk 0:00:42]} 39. Rb1 {[%clk 0:01:01]}  Re3 {[%clk 0:00:39]} 40. Rd1 {[%clk 0:00:58]}  h3+ {[%clk 0:00:38]} 41. Kf2 {[%clk 0:00:58]}  h4 {[%clk 0:00:33]} 42. c4 {[%clk 0:00:58]}  Rg3 {[%clk 0:00:32]} 43. Be4 {[%clk 0:00:54]}  h2 {[%clk 0:00:29]} 44. d5 {[%clk 0:00:54]}  Be3+ {[%clk 0:00:28]} 45. Ke2 {[%clk 0:00:53]}  Bxc5 {[%clk 0:00:25]} 46. dxc6 {[%clk 0:00:52]}  bxc6 {[%clk 0:00:26]} 47. Bxc6 {[%clk 0:00:53]}  Rg1 {[%clk 0:00:25]} 48. Rf1+ {[%clk 0:00:51]}  Ke5 {[%clk 0:00:23]} 49. Bb7 {[%clk 0:00:50]}  Kd4 {[%clk 0:00:20]} 50. Bd5 {[%clk 0:00:50]}  Rxf1 {[%clk 0:00:17]} 51. Kxf1 {[%clk 0:00:50]}  h1=Q+ {[%clk 0:00:18]} 52. Bxh1 {[%clk 0:00:50]}  Kxc4 {[%clk 0:00:18]} 53. Bb7 {[%clk 0:00:50]}  Kb5 {[%clk 0:00:18]} 54. Bxa6+ {[%clk 0:00:50]}  Kxa6 {[%clk 0:00:19]} 55. Kg2 {[%clk 0:00:50]}  Kxa5 {[%clk 0:00:19]} 56. Kh1 {[%clk 0:00:51]}  Bd6 {[%clk 0:00:18]} 57. Kg1 {[%clk 0:00:52]}  Bg3 {[%clk 0:00:19]} 58. Kh1 {[%clk 0:00:53]}  Kb4 {[%clk 0:00:20]} 59. Kg1 {[%clk 0:00:54]}  Kc3 {[%clk 0:00:20]} 60. Kh1 {[%clk 0:00:55]}  Kd2 {[%clk 0:00:21]} 61. Kg1 {[%clk 0:00:56]}  Ke3 {[%clk 0:00:22]} 62. Kh1 {[%clk 0:00:57]}  Kf4 {[%clk 0:00:22]} 63. Kg1 {[%clk 0:00:57]}  Kg5 {[%clk 0:00:23]} 64. Kh1 {[%clk 0:00:58]}  Kf6 {[%clk 0:00:24]} 65. Kg1 {[%clk 0:00:59]}  Ke5 {[%clk 0:00:25]} 66. Kh1 {[%clk 0:01:00]}  Kf6 {[%clk 0:00:26]} 67. Kg1 {[%clk 0:01:01]}  Ke5 {[%clk 0:00:26]} 68. Kh1 {[%clk 0:01:02]}  Kf6 {[%clk 0:00:27]} 1/2-1/2


[Site "https://www.chess.com"]